[Event "34rd NATO Championship 2024"]
[Site "Rhodes"]
[Date "2024.10.21"]
[Round "1.1"]
[White "Alexakis, Dimitris"]
[Black "Unruh, Charles M"]
[Result "1-0"]
[ECO "B07"]
[WhiteElo "2504"]
[BlackElo "1911"]
[Annotator "TA"]
[PlyCount "27"]
[EventDate "2024.09.18"]
[EventType "swiss"]
[EventCountry "GRE"]
[SourceTitle "playchess.com"]
[Source "ChessBase"]
[SourceQuality "1"]
[TimeControl "5400+30"]

{[%evp 9,27,33,48,2,7,22,61,50,77,68,72,68,86,73,170,160,406,410,408,403]} 1. e4 {[%emt 0:00:07]} d6 {[%emt 0:00:05]} 2. d4 {[%emt 0:00:10]} Nf6 {[%emt 0:00:05]} 3. Nc3 {[%emt 0:00:31]} g6 {[%emt 1:31:50]} 4. f3 {[%emt 0:01:01]} c6 {[%emt 0:00:00]} 5. g4 {[%emt 1:31:11][%cal Bg2g4,Bg4g5][%mdl 32]} Bg7 {[%emt 0:00:00]} 6. h4 {[%emt 0:00:00]} (6. Nge2 $14 {deserves consideration.}) 6... h5 $11 {[%emt 0:00:00]} 7. g5 {[%emt 0:00:00]} Ng8 {[%emt 0:00:00]} 8. Be3 {[%cal Bc1e3,Be3f4,Bf4c7][%mdl 32] White is slightly better.} Qa5 {[%emt 0:00:00]} 9. Qd2 e6 {[%emt 0:00:00]} 10. O-O-O {[%emt 0:00:00]} Ne7 {[%emt 0:00:00]} 11. Kb1 {[%emt 0:00:00]} d5 {[%emt 0:00:00] [#]} (11... Qc7 $16) 12. Bf4 $1 $18 {[%emt 0:00:00][%cal Oc3d5] Strongly threatening Nxd5!} O-O $2 {[%emt 0:00:00] [#]} (12... Qd8 $16 {was called for.} 13. Qh2 Bd7) 13. Nxd5 $1 {[%emt 0:00:00][%mdl 512]} Qd8 {[%emt 0:00:00]} 14. Bc7 {[%emt 0:00:00] Weighted Error Value: White=0.09 (flawless) /Black=0.46.  Loses game:     	---       	Black=1      Mistake:       	---       	Black=1      Inaccurate:     	---       	Black=2      OK:         	White=5     	Black=3      Best:        	---       	Black=1} 1-0

[Event "34rd NATO Championship 2024"]
[Site "Rhodes"]
[Date "2024.10.21"]
[Round "1.2"]
[White "Van de Walle, Rob"]
[Black "Stein, Robert"]
[Result "0-1"]
[ECO "D37"]
[WhiteElo "1900"]
[BlackElo "2409"]
[Annotator "RC"]
[PlyCount "66"]
[EventDate "2024.09.18"]
[EventType "swiss"]
[EventCountry "GRE"]
[SourceTitle "playchess.com"]
[Source "ChessBase"]
[SourceQuality "1"]
[TimeControl "5400+30"]

1. d4 {[%emt 0:00:02]} d5 {[%emt 0:00:10]} 2. c4 {[%emt 0:00:06]} e6 {[%emt 0:00:06]} 3. Nc3 {[%emt 0:00:06]} h6 {[%emt 0:00:07]} 4. Nf3 {[%emt 0:00:24]} Nf6 {[%emt 0:00:13]} 5. Bf4 {[%emt 0:01:48]} Bd6 {[%emt 0:02:00]} 6. Bxd6 {[%emt 0:01:18]} Qxd6 {[%emt 0:00:08]} 7. e3 {[%emt 0:01:04]} O-O {[%emt 0:04:44]} 8. Rc1 {[%emt 0:04:42]} Qe7 {[%emt 0:04:48]} 9. Be2 {[%emt 0:05:33]} dxc4 {[%emt 0:12:12]} 10. Bxc4 {[%emt 0:00:43]} c5 {[%emt 0:01:47]} 11. Qe2 {[%emt 0:03:38]} cxd4 {[%emt 0:13:26]} 12. exd4 {[%emt 0:00:14]} Nc6 {[%emt 0:02:43]} 13. O-O {[%emt 0:02:09]} a6 {[%emt 0:04:30]} 14. Rfe1 {[%emt 0:08:13]} b5 {[%emt 0:04:58]} 15. Bd3 {[%emt 0:06:06]} Nb4 {[%emt 0:03:07]} 16. Bb1 {[%emt 0:00:37]} Bb7 {[%emt 0:00:08]} 17. Ne5 {[%emt 0:06:50]} Rfd8 {[%emt 0:03:30]} 18. Rcd1 {[%emt 0:01:21]} Rac8 {[%emt 0:02:20]} 19. a4 {[%emt 0:05:52]} bxa4 {[%emt 0:15:16]} 20. Nxa4 {[%emt 0:01:18]} Nbd5 {[%emt 0:08:10]} 21. Qd2 {[%emt 0:02:02]} Qb4 {[%emt 0:02:05]} 22. Nc5 {[%emt 0:04:31]} Qxd2 {[%emt 0:02:50]} 23. Rxd2 {[%emt 0:00:07]} Rc7 {[%emt 0:00:45]} 24. Nxb7 {[%emt 0:08:08]} Rxb7 {[%emt 0:00:07]} 25. Nd3 {[%emt 0:03:21]} Nb4 {[%emt 0:00:37]} 26. Nc5 {[%emt 0:01:12]} Rb5 {[%emt 0:01:42]} 27. Ne4 {[%emt 0:02:24]} Rbd5 {[%emt 0:04:48]} 28. Rc1 {[%emt 0:12:13]} a5 {[%emt 0:04:17]} 29. g3 {[%emt 0:04:07]} Kf8 {[%emt 0:00:18]} 30. Kg2 {[%emt 0:00:29]} Nxe4 {[%emt 0:00:22]} 31. Bxe4 {[%emt 0:00:11]} Rxd4 {[%emt 0:00:12]} 32. Rxd4 {[%emt 0:00:21]} Rxd4 {[%emt 0:00:05]} 33. Bb1 {[%emt 0:04:06]} Rd2 {[%emt 0:00:08]} 0-1

[Event "34rd NATO Championship 2024"]
[Site "Rhodes"]
[Date "2024.10.21"]
[Round "1.3"]
[White "Papasimakopoulos, Alexandros"]
[Black "Kruit, Erik"]
[Result "1-0"]
[ECO "A51"]
[WhiteElo "2372"]
[BlackElo "1899"]
[Annotator "RC"]
[PlyCount "43"]
[EventDate "2024.09.18"]
[EventType "swiss"]
[EventCountry "GRE"]
[SourceTitle "playchess.com"]
[Source "ChessBase"]
[SourceQuality "1"]
[TimeControl "5400+30"]

1. d4 {[%emt 0:00:04]} Nf6 {[%emt 0:00:18]} 2. c4 {[%emt 0:00:06]} e5 {[%emt 0:00:20]} 3. dxe5 {[%emt 0:00:05]} Ne4 {[%emt 0:00:07]} 4. a3 {[%emt 0:00:05]} a5 {[%emt 0:00:56]} 5. Qc2 {[%emt 0:00:27]} f5 {[%emt 0:02:11]} 6. exf6 {[%emt 0:00:11]} Nxf6 {[%emt 0:00:13]} 7. Nc3 {[%emt 0:00:34]} Nc6 {[%emt 0:20:15]} 8. Nf3 {[%emt 0:00:21]} Bc5 {[%emt 0:03:48]} 9. Bg5 {[%emt 0:02:46]} O-O {[%emt 0:09:30]} 10. e3 {[%emt 0:00:37]} Ne7 {[%emt 0:03:51]} 11. Bd3 {[%emt 0:06:00]} h6 {[%emt 0:00:15]} 12. Bxf6 {[%emt 0:01:11]} gxf6 {[%emt 0:00:42]} 13. Ne4 {[%emt 0:01:49]} b6 {[%emt 0:01:48]} 14. g4 {[%emt 0:04:58]} Ba6 {[%emt 0:02:29]} 15. O-O-O {[%emt 0:01:00]} Qe8 {[%emt 0:01:57]} 16. h4 {[%emt 0:00:38]} d6 {[%emt 0:06:13]} 17. Rdg1 {[%emt 0:03:53]} b5 {[%emt 0:01:24]} 18. cxb5 {[%emt 0:00:46]} Bb7 {[%emt 0:00:37]} 19. g5 {[%emt 0:01:40]} Nd5 {[%emt 0:03:19]} 20. gxh6+ {[%emt 0:01:13]} Kh8 {[%emt 0:00:40]} 21. Rg7 {[%emt 0:00:27]} Qh5 {[%emt 0:04:00]} 22. Nxc5 {[%emt 0:00:29]} 1-0

[Event "34rd NATO Championship 2024"]
[Site "Rhodes"]
[Date "2024.10.21"]
[Round "1.4"]
[White "Heran-Boily, Samuel"]
[Black "Aizpurua, Patrick Emilio"]
[Result "0-1"]
[ECO "B51"]
[WhiteElo "1898"]
[BlackElo "2322"]
[Annotator "RC"]
[PlyCount "58"]
[EventDate "2024.09.18"]
[EventType "swiss"]
[EventCountry "GRE"]
[SourceTitle "playchess.com"]
[Source "ChessBase"]
[SourceQuality "1"]
[TimeControl "5400+30"]

1. e4 {[%emt 0:00:30]} c5 {[%emt 0:00:21]} 2. Nf3 {[%emt 0:00:06]} d6 {[%emt 0:00:04]} 3. Bb5+ {[%emt 0:00:04]} Nd7 {[%emt 0:00:08]} 4. O-O {[%emt 0:00:09]} a6 {[%emt 0:00:34]} 5. Bd3 {[%emt 0:00:05]} Ngf6 {[%emt 0:00:50]} 6. Re1 {[%emt 0:00:07]} Qc7 {[%emt 0:00:19]} 7. c3 {[%emt 0:00:44]} g6 {[%emt 0:00:19]} 8. Bc2 {[%emt 0:00:12]} Bg7 {[%emt 0:00:08]} 9. d4 {[%emt 0:01:11]} e5 {[%emt 0:00:26]} 10. d5 {[%emt 0:02:36]} c4 {[%emt 0:00:25]} 11. a4 {[%emt 0:01:29]} Rb8 {[%emt 0:00:14]} 12. h3 {[%emt 0:08:37]} b5 {[%emt 0:09:12]} 13. axb5 {[%emt 0:00:30]} axb5 {[%emt 0:00:02]} 14. Be3 {[%emt 0:01:00]} Nc5 {[%emt 0:00:25]} 15. Nbd2 {[%emt 0:01:24]} O-O {[%emt 0:00:14]} 16. Qe2 {[%emt 0:02:13]} Bd7 {[%emt 0:04:23]} 17. Bxc5 {[%emt 0:08:33]} Qxc5 {[%emt 0:00:09]} 18. Qe3 {[%emt 0:00:38]} Qc8 {[%emt 0:08:03]} 19. Ra7 {[%emt 0:09:28]} Nh5 {[%emt 0:01:19]} 20. Rea1 {[%emt 0:01:43]} Nf4 {[%emt 0:00:32]} 21. Nh2 {[%emt 0:19:10]} Bh6 {[%emt 0:01:16]} 22. Qe1 {[%emt 0:00:33]} b4 {[%emt 0:10:43]} 23. Nxc4 {[%emt 0:04:37]} Bxh3 {[%emt 0:00:11]} 24. Nxd6 {[%emt 0:01:12]} Qd8 {[%emt 0:00:08]} 25. gxh3 {[%emt 0:00:43]} Qg5+ {[%emt 0:09:30]} 26. Ng4 {[%emt 0:00:10]} Nxh3+ {[%emt 0:00:05]} 27. Kh2 {[%emt 0:05:32]} Qxg4 {[%emt 0:00:13]} 28. Bd1 {[%emt 0:00:59]} Bf4+ {[%emt 0:01:21]} 29. Kh1 {[%emt 0:00:15]} Nxf2+ {[%emt 0:02:45]} 0-1

[Event "34rd NATO Championship 2024"]
[Site "Rhodes"]
[Date "2024.10.21"]
[Round "1.5"]
[White "Pedersen, Finn"]
[Black "Farrell, John"]
[Result "1-0"]
[ECO "D02"]
[WhiteElo "2282"]
[BlackElo "1898"]
[Annotator "RC"]
[PlyCount "93"]
[EventDate "2024.09.18"]
[EventType "swiss"]
[EventCountry "GRE"]
[SourceTitle "playchess.com"]
[Source "ChessBase"]
[SourceQuality "1"]
[TimeControl "5400+30"]

1. Nf3 {[%emt 0:00:22]} Nf6 {[%emt 0:00:07]} 2. d4 {[%emt 0:00:21]} d5 {[%emt 0:00:09]} 3. Bf4 {[%emt 0:00:59]} c5 {[%emt 0:00:39]} 4. c3 {[%emt 0:00:43]} e6 {[%emt 0:01:03]} 5. e3 {[%emt 0:00:16]} Nc6 {[%emt 0:01:57]} 6. Nbd2 {[%emt 0:00:30]} Be7 {[%emt 0:04:13]} 7. Bd3 {[%emt 0:01:16]} Qb6 {[%emt 0:01:00]} 8. Qb1 {[%emt 0:01:33]} h6 {[%emt 0:00:25]} 9. h3 {[%emt 0:00:33]} Bd7 {[%emt 0:05:00]} 10. O-O {[%emt 0:01:48]} O-O {[%emt 0:01:37]} 11. Re1 {[%emt 0:03:49]} Rac8 {[%emt 0:01:10]} 12. Ne5 {[%emt 0:11:39]} Nxe5 {[%emt 0:01:10]} 13. Bxe5 {[%emt 0:00:57]} Bb5 {[%emt 0:00:57]} 14. Bc2 {[%emt 0:00:32]} Nd7 {[%emt 0:02:57]} 15. Bg3 {[%emt 0:05:57]} Bd6 {[%emt 0:00:12]} 16. f4 {[%emt 0:01:43]} f5 {[%emt 0:01:07]} 17. a4 {[%emt 0:03:56]} Bc6 {[%emt 0:00:23]} 18. a5 {[%emt 0:01:11]} Qd8 {[%emt 0:00:21]} 19. Nf3 {[%emt 0:03:14]} Nf6 {[%emt 0:00:50]} 20. Bh4 {[%emt 0:00:42]} Be7 {[%emt 0:00:49]} 21. Ne5 {[%emt 0:01:13]} Be8 {[%emt 0:00:19]} 22. Qa2 {[%emt 0:03:08]} Ne4 {[%emt 0:00:37]} 23. Bxe7 {[%emt 0:00:21]} Qxe7 {[%emt 0:00:08]} 24. Bxe4 {[%emt 0:00:36]} fxe4 {[%emt 0:01:12]} 25. Rf1 {[%emt 0:02:16]} Qd6 {[%emt 0:05:14]} 26. Rf2 {[%emt 0:02:02]} c4 {[%emt 0:01:00]} 27. b3 {[%emt 0:02:06]} Bb5 {[%emt 0:01:13]} 28. b4 {[%emt 0:00:12]} a6 {[%emt 0:01:40]} 29. Qe2 {[%emt 0:01:17]} Qd8 {[%emt 0:04:41]} 30. Kh2 {[%emt 0:01:40]} Be8 {[%emt 0:01:10]} 31. Rg1 {[%emt 0:02:55]} Qh4 {[%emt 0:01:39]} 32. g3 {[%emt 0:00:31]} Qh5 {[%emt 0:00:37]} 33. g4 {[%emt 0:05:18]} Qh4 {[%emt 0:00:41]} 34. g5 {[%emt 0:00:29]} Bh5 {[%emt 0:01:24]} 35. gxh6 {[%emt 0:03:07]} Rc7 {[%emt 1:00:19]} 36. Qe1 {[%emt 0:00:17]} Rf6 {[%emt 0:00:00]} 37. hxg7 {[%emt 0:03:38]} Rh6 {[%emt 0:00:00]} 38. Rg3 {[%emt 0:01:09]} Rh7 {[%emt 0:00:00]} 39. Rfg2 {[%emt 0:02:35]} Qf6 {[%emt 0:00:00]} 40. Rg5 {[%emt 0:03:27]} Be8 {[%emt 0:00:00]} 41. Qg3 {[%emt 0:00:24]} Rcxg7 {[%emt 0:03:00]} 42. Rxg7+ {[%emt 0:02:23]} Rxg7 {[%emt 0:00:00]} 43. Qxg7+ {[%emt 0:00:17]} Qxg7 {[%emt 0:00:00]} 44. Rxg7+ {[%emt 0:00:05]} Kxg7 {[%emt 0:00:00]} 45. Kg3 {[%emt 0:00:09]} Kh6 {[%emt 0:00:00]} 46. Kh4 {[%emt 0:01:56]} Kh7 {[%emt 0:00:00]} 47. Kg5 {[%emt 0:28:28]} 1-0

[Event "34rd NATO Championship 2024"]
[Site "Rhodes"]
[Date "2024.10.21"]
[Round "1.6"]
[White "Rosseel, Kimball"]
[Black "Helbig, Mark"]
[Result "0-1"]
[ECO "A00"]
[WhiteElo "1896"]
[BlackElo "2280"]
[Annotator "RC"]
[PlyCount "116"]
[EventDate "2024.09.18"]
[EventType "swiss"]
[EventCountry "GRE"]
[SourceTitle "playchess.com"]
[Source "ChessBase"]
[SourceQuality "1"]
[TimeControl "5400+30"]

1. b4 {[%emt 0:00:04]} d5 {[%emt 0:01:03]} 2. Bb2 {[%emt 0:00:27]} Bf5 {[%emt 0:00:57]} 3. Nf3 {[%emt 0:00:55]} e6 {[%emt 0:01:35]} 4. e3 {[%emt 0:01:08]} Nf6 {[%emt 0:00:47]} 5. a3 {[%emt 0:01:36]} Bd6 {[%emt 0:03:47]} 6. c4 {[%emt 0:04:43]} c6 {[%emt 0:00:52]} 7. c5 {[%emt 0:04:24]} Bc7 {[%emt 0:00:23]} 8. d4 {[%emt 0:02:05]} Nbd7 {[%emt 0:01:03]} 9. Bd3 {[%emt 0:03:48]} Ne4 {[%emt 0:03:02]} 10. Qc2 {[%emt 0:05:11]} Bg6 {[%emt 0:01:10]} 11. Nbd2 {[%emt 0:04:12]} f5 {[%emt 0:01:21]} 12. Ne5 {[%emt 0:03:31]} Bh5 {[%emt 0:10:23]} 13. Ndf3 {[%emt 0:07:52]} O-O {[%emt 0:05:26]} 14. O-O {[%emt 0:03:09]} Bxf3 {[%emt 0:08:02]} 15. Nxf3 {[%emt 0:03:47]} Qf6 {[%emt 0:01:21]} 16. a4 {[%emt 0:09:27]} g5 {[%emt 0:01:02]} 17. Bxe4 {[%emt 0:04:43]} fxe4 {[%emt 0:01:16]} 18. Ne1 {[%emt 0:00:28]} Qh6 {[%emt 0:01:26]} 19. g3 {[%emt 0:02:02]} Rf3 {[%emt 0:06:50]} 20. Kg2 {[%emt 0:06:40]} Raf8 {[%emt 0:04:11]} 21. Bc3 {[%emt 0:02:34]} Qh5 {[%emt 0:45:03]} 22. h3 g4 {[%emt 0:00:00]} 23. h4 {[%emt 0:12:02]} Bxg3 {[%emt 0:00:00]} 24. fxg3 {[%emt 0:04:55]} Rxf1 {[%emt 0:00:00]} 25. Qe2 {[%emt 0:01:28]} Qf5 {[%emt 0:00:00]} 26. Ra2 {[%emt 0:00:34]} a6 {[%emt 0:00:00]} 27. a5 {[%emt 0:02:14]} h6 {[%emt 0:00:00]} 28. Rb2 {[%emt 0:01:21]} Kh7 {[%emt 0:00:00]} 29. Ra2 {[%emt 0:00:28]} Rf3 {[%emt 0:00:00]} 30. Qd2 {[%emt 0:02:19]} Rxe3 {[%emt 0:00:00]} 31. Kh2 {[%emt 0:02:03]} Rxg3 {[%emt 0:00:00]} 32. Kxg3 {[%emt 0:01:42]} Qf1 {[%emt 0:00:00]} 33. Qg2 {[%emt 0:01:13]} Qc4 {[%emt 0:00:00]} 34. Rc2 {[%emt 0:01:07]} Nf6 {[%emt 0:00:00]} 35. Qe2 {[%emt 0:00:42]} Qb3 {[%emt 0:00:00]} 36. Ng2 {[%emt 0:00:59]} e3 {[%emt 0:00:00]} 37. Be1 {[%emt 0:00:46]} h5 {[%emt 0:00:00]} 38. Nxe3 {[%emt 0:00:32]} Ne4+ {[%emt 0:00:00]} 39. Kh2 {[%emt 0:00:10]} Rf3 {[%emt 0:00:00]} 40. Ng2 {[%emt 0:00:35]} Qb1 {[%emt 0:00:00]} 41. Rb2 {[%emt 0:01:16]} Qa1 {[%emt 0:00:00]} 42. Qc2 {[%emt 0:00:39]} Kg7 {[%emt 0:00:00]} 43. Qb1 {[%emt 0:00:35]} Qa3 {[%emt 0:00:00]} 44. Qc2 {[%emt 0:00:23]} Rf1 {[%emt 0:00:00]} 45. Rb3 {[%emt 0:01:03]} Qa4 {[%emt 0:00:00]} 46. Qb2 {[%emt 0:00:48]} Qb5 {[%emt 0:00:00]} 47. Qc2 {[%emt 0:00:15]} Rf3 {[%emt 0:00:00]} 48. Rxf3 {[%emt 0:00:55]} gxf3 {[%emt 0:00:00]} 49. Nf4 {[%emt 0:00:01]} Qf1 {[%emt 0:00:00]} 50. Bg3 {[%emt 0:00:34]} f2 {[%emt 0:00:00]} 51. Nh3 {[%emt 0:00:19]} Qxh3+ {[%emt 0:00:00]} 52. Kxh3 {[%emt 0:00:14]} f1=Q+ {[%emt 0:00:00]} 53. Qg2 {[%emt 0:01:07]} Nxg3 {[%emt 0:00:00]} 54. Kxg3 {[%emt 0:00:05]} Qxg2+ {[%emt 0:00:05]} 55. Kxg2 {[%emt 0:00:02]} Kf6 {[%emt 0:00:24]} 56. Kg3 {[%emt 0:00:18]} e5 {[%emt 0:00:24]} 57. dxe5+ {[%emt 0:00:03]} Kxe5 {[%emt 0:00:07]} 58. Kf3 {[%emt 0:00:14]} d4 {[%emt 0:00:21]} 0-1

[Event "34rd NATO Championship 2024"]
[Site "Rhodes"]
[Date "2024.10.21"]
[Round "1.7"]
[White "Pavlidis, Anastasios"]
[Black "Skaburskis, Martynas"]
[Result "1-0"]
[ECO "D35"]
[WhiteElo "2279"]
[BlackElo "1893"]
[Annotator "RC"]
[PlyCount "67"]
[EventDate "2024.09.18"]
[EventType "swiss"]
[EventCountry "GRE"]
[SourceTitle "playchess.com"]
[Source "ChessBase"]
[SourceQuality "1"]
[TimeControl "5400+30"]

1. d4 {[%emt 0:00:07]} d5 {[%emt 0:00:29]} 2. c4 {[%emt 0:00:14]} e6 {[%emt 0:00:51]} 3. Nc3 {[%emt 0:00:56]} Nf6 {[%emt 0:00:50]} 4. cxd5 {[%emt 0:00:26]} exd5 {[%emt 0:00:30]} 5. Bg5 {[%emt 0:00:17]} c6 {[%emt 0:00:47]} 6. e3 {[%emt 0:01:05]} Bf5 {[%emt 0:02:16]} 7. Qf3 {[%emt 0:03:29]} Bg6 {[%emt 0:01:44]} 8. Bxf6 {[%emt 0:05:28]} Qxf6 {[%emt 0:05:15]} 9. Qxf6 {[%emt 0:00:26]} gxf6 {[%emt 0:00:07]} 10. h4 {[%emt 0:02:15]} h5 {[%emt 0:02:34]} 11. Nge2 {[%emt 0:09:47]} Bd6 {[%emt 0:02:36]} 12. Nc1 {[%emt 0:13:08]} Nd7 {[%emt 0:10:18]} 13. Nd3 {[%emt 0:06:00]} Rg8 {[%emt 0:10:49]} 14. g3 {[%emt 0:04:13]} f5 {[%emt 0:09:08]} 15. Ne2 {[%emt 0:06:23]} Nf6 {[%emt 0:02:16]} 16. Nef4 {[%emt 0:03:43]} Ng4 {[%emt 0:02:04]} 17. Ke2 {[%emt 0:05:48]} O-O-O {[%emt 0:01:57]} 18. Bg2 {[%emt 0:03:34]} Rde8 {[%emt 0:05:41]} 19. b4 {[%emt 0:02:01]} Nf6 {[%emt 0:07:04]} 20. a4 {[%emt 0:02:14]} Ne4 {[%emt 0:02:05]} 21. Rhc1 {[%emt 0:01:28]} Kd7 {[%emt 0:00:46]} 22. b5 {[%emt 0:06:12]} Rc8 {[%emt 0:01:08]} 23. bxc6+ {[%emt 0:12:24]} bxc6 {[%emt 0:00:45]} 24. Bf3 {[%emt 0:02:54]} Nf6 {[%emt 0:02:56]} 25. Bg2 {[%emt 0:05:47]} Rb8 {[%emt 0:01:59]} 26. Rc2 {[%emt 0:00:28]} Rb6 {[%emt 0:01:56]} 27. a5 {[%emt 0:00:36]} Rbb8 {[%emt 0:02:56]} 28. Rac1 {[%emt 0:00:17]} Rgc8 {[%emt 0:00:34]} 29. Ne5+ {[%emt 0:01:58]} Bxe5 {[%emt 0:00:47]} 30. dxe5 {[%emt 0:00:04]} Ng4 {[%emt 0:02:53]} 31. e6+ {[%emt 0:00:12]} Kd8 {[%emt 0:01:11]} 32. Bxd5 {[%emt 0:00:48]} cxd5 {[%emt 0:01:15]} 33. Rxc8+ {[%emt 0:00:18]} Rxc8 {[%emt 0:00:18]} 34. e7+ {[%emt 0:00:05]} 1-0

[Event "34rd NATO Championship 2024"]
[Site "Rhodes"]
[Date "2024.10.21"]
[Round "1.8"]
[White "Dowd, Patrick"]
[Black "Reizniece-Ozola, Dana"]
[Result "0-1"]
[ECO "B06"]
[WhiteElo "1885"]
[BlackElo "2255"]
[Annotator "RC"]
[PlyCount "58"]
[EventDate "2024.09.18"]
[EventType "swiss"]
[EventCountry "GRE"]
[SourceTitle "playchess.com"]
[Source "ChessBase"]
[SourceQuality "1"]
[TimeControl "5400+30"]

1. d4 {[%emt 1:31:00]} g6 {[%emt 1:31:00]} 2. Bf4 {[%emt 0:00:30]} Bg7 {[%emt 0:00:30]} 3. Nc3 {[%emt 0:00:30]} d6 {[%emt 0:00:30]} 4. e4 {[%emt 0:00:30]} a6 {[%emt 0:00:30]} 5. Qd2 {[%emt 0:00:30]} b5 {[%emt 0:00:30]} 6. Nf3 {[%emt 0:00:30]} Bb7 {[%emt 0:00:30]} 7. Bd3 {[%emt 0:00:30]} Nd7 {[%emt 0:00:30]} 8. O-O-O {[%emt 0:00:30]} c5 {[%emt 0:00:30]} 9. d5 {[%emt 0:00:30]} c4 {[%emt 0:00:30]} 10. Be2 {[%emt 0:00:30]} b4 {[%emt 0:00:30]} 11. Na4 {[%emt 0:00:30]} Qa5 {[%emt 0:00:30]} 12. b3 {[%emt 0:00:30]} c3 {[%emt 0:00:30]} 13. Qe3 {[%emt 0:00:30]} Nc5 {[%emt 0:00:30]} 14. e5 {[%emt 0:00:30]} Nxa4 {[%emt 0:00:30]} 15. exd6 {[%emt 0:00:30]} Nb6 {[%emt 0:00:30]} 16. Kb1 {[%emt 0:00:30]} Qa3 {[%emt 0:00:30]} 17. Qc1 {[%emt 0:00:30]} Qxc1+ {[%emt 0:00:30]} 18. Kxc1 {[%emt 0:00:30]} Nxd5 {[%emt 0:00:30]} 19. Bg3 {[%emt 0:00:30]} exd6 {[%emt 0:00:30]} 20. Bxd6 {[%emt 0:00:30]} O-O-O {[%emt 0:00:30]} 21. Rxd5 {[%emt 0:00:30]} Bxd5 {[%emt 0:00:30]} 22. Bxa6+ {[%emt 0:00:30]} Bb7 {[%emt 0:00:30]} 23. Bxb7+ {[%emt 0:00:30]} Kxb7 {[%emt 0:00:30]} 24. Bxb4 {[%emt 0:00:30]} Nh6 {[%emt 0:00:30]} 25. h4 {[%emt 0:00:30]} Rhe8 {[%emt 0:00:30]} 26. h5 {[%emt 0:00:30]} Ng4 {[%emt 0:00:30]} 27. hxg6 {[%emt 0:00:30]} hxg6 {[%emt 0:00:30]} 28. Ng5 {[%emt 0:00:30]} Nxf2 {[%emt 0:00:30]} 29. Rf1 {[%emt 0:00:30]} Bh6 {[%emt 0:00:30]} 0-1

[Event "34rd NATO Championship 2024"]
[Site "Rhodes"]
[Date "2024.10.21"]
[Round "1.9"]
[White "Andersen, Hans-Christoph"]
[Black "Ivbulis, Martins"]
[Result "1-0"]
[ECO "D30"]
[WhiteElo "2229"]
[BlackElo "1891"]
[Annotator "RC"]
[PlyCount "43"]
[EventDate "2024.09.18"]
[EventType "swiss"]
[EventCountry "GRE"]
[SourceTitle "playchess.com"]
[Source "ChessBase"]
[SourceQuality "1"]
[TimeControl "5400+30"]

1. d4 {[%emt 0:00:17]} d5 {[%emt 0:00:10]} 2. c4 {[%emt 0:00:37]} e6 {[%emt 0:00:08]} 3. Nf3 {[%emt 0:00:35]} a6 {[%emt 0:00:40]} 4. Bg5 {[%emt 0:01:10]} Be7 {[%emt 0:01:31]} 5. Bxe7 {[%emt 0:00:27]} Qxe7 {[%emt 0:00:10]} 6. Nbd2 {[%emt 0:00:37]} Nf6 {[%emt 0:00:21]} 7. g3 {[%emt 0:00:47]} dxc4 {[%emt 0:03:54]} 8. Nxc4 {[%emt 0:00:47]} b5 {[%emt 0:04:51]} 9. Na5 {[%emt 0:05:13]} Ne4 {[%emt 0:06:55]} 10. a3 {[%emt 0:05:15]} Nd7 {[%emt 0:02:53]} 11. Bg2 {[%emt 0:04:04]} Ndf6 {[%emt 0:12:48]} 12. Nd2 {[%emt 0:24:47]} Nxf2 {[%emt 0:01:21]} 13. Kxf2 {[%emt 0:01:43]} Ng4+ {[%emt 0:00:08]} 14. Kg1 {[%emt 0:00:29]} Qg5 {[%emt 0:00:15]} 15. Nf1 {[%emt 0:01:25]} Qf6 {[%emt 0:06:06]} 16. Bf3 {[%emt 0:01:12]} e5 {[%emt 0:00:18]} 17. h3 {[%emt 0:04:25]} e4 {[%emt 0:02:33]} 18. Bxg4 {[%emt 0:00:53]} Bxg4 {[%emt 0:00:02]} 19. hxg4 {[%emt 0:00:20]} e3 {[%emt 0:00:15]} 20. Nxe3 {[%emt 0:02:15]} O-O-O {[%emt 0:55:11]} 21. Qd3 {[%emt 0:43:42]} g6 {[%emt 0:00:30]} 22. Rc1 {[%emt 0:00:30]} 1-0